fUSD/lending_fUSD_20260322
["ID","MTS","AMOUNT","RATE_DAILY","PERIOD"]
[408760433,1774203040785,-183.95676456,0.00011927,2]
[408760434,1774203040794,-420.0,0.00011946,2]
[408760435,1774203040803,-207.0,0.00011946,2]
[408760436,1774203040812,-255.0,0.00011999,2]
[408760437,1774203040822,-32984.9071,0.00012048,2]
[408760438,1774203040831,-1720.8,0.00012055,2]
[408760439,1774203040840,-349.94,0.00012057,2]
[408760440,1774203040849,-9999.99,0.00012087,2]
[408760441,1774203040859,-301.06,0.00012087,2]
[408760442,1774203040868,-150.99,0.00012087,2]
[408760443,1774203040877,-508.47953738,0.00012096,2]
[408760444,1774203040886,-166.66,0.00012132,2]
[408760445,1774203040895,-1010.03678903,0.00012147,3]
[408760446,1774203040904,-1000.0,0.00012221,2]
[408760447,1774203040914,-1000.0,0.00012221,2]
[408760448,1774203040923,-1000.0,0.00012221,2]
[408760449,1774203040932,-1000.0,0.00012221,2]
[408760450,1774203040941,-500.0,0.00012221,2]
[408760451,1774203040950,-1000.0,0.00012221,2]
[408760452,1774203040960,-2000.0,0.0001223,2]
[408760453,1774203040969,-1003.83332292,0.00012421,2]
[408760454,1774203040978,-159.81,0.00012498,2]
[408760455,1774203040987,-166.66,0.00012532,2]
[408760456,1774203040996,-210.5654078,0.00012656,2]
[408760457,1774203041005,-200.94519025,0.00012765,2]
[408760458,1774203041014,-200.94519025,0.00012765,2]
[408760459,1774203041023,-200.94519025,0.00012765,2]
[408760460,1774203041032,-1500.0,0.00012768,2]
[408760461,1774203041041,-500.0,0.00012768,2]
[408760462,1774203041050,-1000.0,0.00012768,2]
[408760463,1774203041060,-1500.0,0.00012768,2]
[408760464,1774203041071,-166.66,0.00012933,2]
[408760465,1774203041081,-160.0,0.00012933,2]
[408760466,1774203041090,-979.16666667,0.00012933,2]
[408760467,1774203041099,-160.0,0.00012933,2]
[408760468,1774203041109,-250.0,0.00012989,2]
[408760469,1774203041118,-150.0,0.00012992,2]
[408760470,1774203041128,-250.0,0.00013,2]
[408760471,1774203041138,-49938.11760255,0.00013034,2]
[408760472,1774203041147,-150.0,0.00013049,2]
[408760473,1774203041156,-2351.0,0.00013052,2]
[408760474,1774203041165,-620.9,0.00013085,2]
[408760475,1774203041175,-1621.02,0.00013119,2]
[408760476,1774203041184,-211.0,0.0001313,2]
[408760477,1774203041193,-433.0,0.00013139,2]
[408760478,1774203041202,-150.2271,0.000132,2]
[408760479,1774203041211,-150.0,0.00013252,2]
[408760480,1774203041221,-150.0,0.0001331,2]
[408760481,1774203041230,-2000.0,0.00013316,2]
[408760482,1774203041239,-2027.24467305,0.00013316,2]
[408760483,1774203041249,-166.66,0.00013333,2]
[408760484,1774203041258,-387.954719,0.00013424,2]
[408760485,1774203041267,-175.407373,0.00013424,2]
[408760486,1774203041276,-284.261749,0.00013424,2]
[408760487,1774203041285,-447.887624,0.00013424,2]
[408760488,1774203041295,-3240.0,0.00013425,2]
[408760489,1774203041305,-355.327187,0.00013425,2]
[408760490,1774203041314,-160.0,0.00013426,2]
[408760491,1774203041323,-453.503233,0.00013426,2]
[408760492,1774203041336,-747.006467,0.00013426,2]
[408760493,1774203041345,-343.690186,0.00013426,2]
[408760494,1774203041354,-484.525869,0.00013426,2]
[408760495,1774203041364,-484.525869,0.00013426,2]
[408760496,1774203041374,-484.525869,0.00013426,2]
[408760497,1774203041383,-484.525869,0.00013426,2]
[408760498,1774203041393,-993.997431,0.00013426,2]
[408760499,1774203041405,-993.997431,0.00013426,2]
[408760500,1774203041414,-993.997431,0.00013426,2]
[408760501,1774203041423,-993.997431,0.00013426,2]
[408760502,1774203041432,-365.71355372,0.0001344,2]
[408760503,1774203041441,-30585.290593,0.0001347,2]
[408760504,1774203041451,-9388.7811198,0.0001347,2]
[408760505,1774203041460,-159.81,0.0001354,2]
[408760506,1774203041469,-2000.0,0.00013589,2]
[408760507,1774203041478,-160.87254113,0.00013598,2]
[408760508,1774203041488,-10000.0,0.00013599,2]
[408760509,1774203041497,-15800.93211783,0.0001362,2]
[408760510,1774203041506,-150.0,0.00013642,2]
[408760511,1774203041515,-151.0,0.00013695,2]
[408760512,1774203041525,-155.556,0.00013697,2]
[408760513,1774203041535,-500.0,0.00013698,2]
[408760514,1774203041544,-500.0,0.00013698,2]
[408760515,1774203041554,-500.0,0.00013698,2]
[408760516,1774203041990,-500.0,0.00013698,2]
[408760517,1774203042000,-500.0,0.00013698,2]
[408760518,1774203042009,-500.0,0.00013698,2]
[408760519,1774203042019,-500.0,0.00013698,2]
[408760520,1774203042029,-500.0,0.00013698,2]
[408760521,1774203042038,-500.0,0.00013698,2]
[408760522,1774203042048,-500.0,0.00013698,2]
[408760523,1774203042057,-500.0,0.00013698,2]
[408760524,1774203042066,-500.0,0.00013698,2]
[408760525,1774203042077,-500.0,0.00013698,2]
[408760526,1774203042087,-500.0,0.00013698,2]
[408760527,1774203042096,-500.0,0.00013698,2]
[408760528,1774203042106,-500.0,0.00013698,2]
[408760529,1774203042115,-500.0,0.00013698,2]
[408760530,1774203042125,-500.0,0.00013698,2]
[408760531,1774203042135,-500.0,0.00013698,2]
[408760532,1774203042145,-500.0,0.00013698,2]
[408760533,1774203042155,-500.0,0.00013698,2]
[408760534,1774203042164,-500.0,0.00013698,2]
[408760535,1774203042174,-500.0,0.00013698,2]
[408760536,1774203042184,-500.0,0.00013698,2]
[408760537,1774203042193,-500.0,0.00013698,2]
[408760538,1774203042203,-500.0,0.00013698,2]
[408760539,1774203042212,-500.0,0.00013698,2]
[408760540,1774203042222,-500.0,0.00013698,2]
[408760541,1774203042231,-500.0,0.00013698,2]
[408760542,1774203042241,-500.0,0.00013698,2]
[408760543,1774203042251,-500.0,0.00013698,2]
[408760544,1774203042260,-500.0,0.00013698,2]
[408760545,1774203042270,-500.0,0.00013698,2]
[408760546,1774203042279,-500.0,0.00013698,2]
[408760547,1774203042289,-500.0,0.00013698,2]
[408760548,1774203042299,-500.0,0.00013698,2]
[408760549,1774203042308,-500.0,0.00013698,2]
[408760550,1774203042318,-500.0,0.00013698,2]
[408760551,1774203042329,-500.0,0.00013698,2]
[408760552,1774203042339,-500.0,0.00013698,2]
[408760553,1774203042348,-500.0,0.00013698,2]
[408760554,1774203042358,-500.0,0.00013698,2]
[408760555,1774203042368,-500.0,0.00013698,2]
[408760556,1774203042379,-500.0,0.00013698,2]
[408760557,1774203042388,-500.0,0.00013698,2]
[408760558,1774203042398,-500.0,0.00013698,2]
[408760559,1774203042410,-500.0,0.00013698,2]
[408760560,1774203042420,-500.0,0.00013698,2]
[408760561,1774203042430,-500.0,0.00013698,2]
[408760562,1774203042440,-293.37404714,0.00013698,2]
[408760563,1774203042450,-500.0,0.00013698,2]
[408760564,1774203042459,-500.0,0.00013698,2]
[408760565,1774203042470,-500.0,0.00013698,2]
[408760566,1774203042480,-500.0,0.00013698,2]
[408760567,1774203042489,-500.0,0.00013698,2]
[408760568,1774203042499,-500.0,0.00013698,2]
[408760569,1774203042510,-500.0,0.00013698,2]
[408760570,1774203042519,-500.0,0.00013698,2]
[408760571,1774203042529,-500.0,0.00013698,2]
[408760572,1774203042538,-500.0,0.00013698,2]
[408760573,1774203042548,-391.0509546,0.00013698,2]
[408760574,1774203042557,-500.0,0.00013698,2]
[408760575,1774203042567,-500.0,0.00013698,2]
[408760576,1774203042577,-500.0,0.00013698,2]
[408760577,1774203042586,-500.0,0.00013698,2]
[408760578,1774203042595,-500.0,0.00013698,2]
[408760579,1774203042604,-500.0,0.00013698,2]
[408760580,1774203042614,-500.0,0.00013698,2]
[408760581,1774203042623,-500.0,0.00013698,2]
[408760582,1774203042633,-500.0,0.00013698,2]
[408760583,1774203042643,-500.0,0.00013698,2]
[408760584,1774203042652,-500.0,0.00013698,2]
[408760585,1774203042662,-500.0,0.00013698,2]
[408760586,1774203042671,-500.0,0.00013698,2]
[408760587,1774203042680,-500.0,0.00013698,2]
[408760588,1774203042690,-500.0,0.00013698,2]
[408760589,1774203042699,-500.0,0.00013698,2]
[408760590,1774203042708,-500.0,0.00013698,2]
[408760591,1774203042717,-500.0,0.00013698,2]
[408760592,1774203042727,-500.0,0.00013698,2]
[408760593,1774203042736,-500.0,0.00013698,2]
[408760594,1774203042746,-500.0,0.00013698,2]
[408760595,1774203042756,-500.0,0.00013698,2]
[408760596,1774203042766,-500.0,0.00013698,2]
[408760597,1774203042775,-500.0,0.00013698,2]
[408760599,1774203042785,-500.0,0.00013698,2]
[408760601,1774203042794,-180.31740041,0.00013698,2]
[408760602,1774203042803,-500.0,0.00013698,2]
[408760603,1774203042811,-506.62310437,0.00013698,2]
[408760604,1774203042819,-500.0,0.00013698,2]
[408760605,1774203042828,-500.0,0.00013698,2]
[408760606,1774203042837,-592.228816,0.00013698,2]
[408760607,1774203042847,-500.0,0.00013698,2]
[408760608,1774203042856,-500.0,0.00013698,2]
[408760609,1774203042866,-500.0,0.00013698,2]
[408760610,1774203042876,-500.0,0.00013698,2]
[408760611,1774203042885,-500.0,0.00013698,2]
[408760612,1774203042893,-500.0,0.00013698,2]
[408760613,1774203042902,-500.0,0.00013698,2]
[408760614,1774203042911,-507.02157658,0.00013698,2]
[408760615,1774203042920,-505.59,0.00013698,2]
[408760616,1774203042929,-505.59,0.00013698,2]
[408760617,1774203042938,-505.59,0.00013698,2]
[408760618,1774203042947,-505.59,0.00013698,2]
[408760619,1774203042957,-505.59,0.00013698,2]
[408760620,1774203042967,-505.59,0.00013698,2]
[408760621,1774203042976,-505.59,0.00013698,2]
[408760623,1774203042985,-505.59,0.00013698,2]
[408760624,1774203042994,-505.59,0.00013698,2]
[408760625,1774203043003,-505.59,0.00013698,2]
[408760626,1774203043012,-505.59,0.00013698,2]
[408760627,1774203043022,-505.59,0.00013698,2]
[408760628,1774203043031,-505.59,0.00013698,2]
[408760629,1774203043040,-505.59,0.00013698,2]
[408760630,1774203043049,-500.0,0.00013698,2]
[408760631,1774203043058,-500.0,0.00013698,2]
[408760632,1774203043068,-500.0,0.00013698,2]
[408760633,1774203043077,-500.0,0.00013698,2]
[408760634,1774203043086,-500.0,0.00013698,2]
[408760635,1774203043095,-500.0,0.00013698,2]
[408760636,1774203043105,-500.0,0.00013698,2]
[408760637,1774203043114,-500.0,0.00013698,2]
[408760638,1774203043124,-500.0,0.00013698,2]
[408760639,1774203043133,-500.0,0.00013698,2]
[408760640,1774203043143,-240.16411222,0.00013698,2]
[408760641,1774203043152,-500.0,0.00013698,2]
[408760642,1774203043161,-500.0,0.00013698,2]
[408760643,1774203043170,-500.0,0.00013698,2]
[408760644,1774203043180,-500.0,0.00013698,2]
[408760645,1774203043189,-500.0,0.00013698,2]
[408760646,1774203043198,-500.0,0.00013698,2]
[408760647,1774203043208,-207.8534478,0.00013698,2]
[408760648,1774203043218,-500.0,0.00013698,2]
[408760649,1774203043227,-500.0,0.00013698,2]
[408760650,1774203043236,-500.0,0.00013698,2]
[408760651,1774203043245,-500.0,0.00013698,2]
[408760652,1774203043255,-500.0,0.00013698,2]
[408760653,1774203043264,-500.0,0.00013698,2]
[408760654,1774203043274,-500.0,0.00013698,2]
[408760655,1774203043283,-500.0,0.00013698,2]
[408760656,1774203043292,-526.80863898,0.00013698,2]
[408760657,1774203043302,-500.0,0.00013698,2]
[408760658,1774203043311,-500.0,0.00013698,2]
[408760659,1774203043321,-500.0,0.00013698,2]
[408760660,1774203043333,-500.0,0.00013698,2]
[408760661,1774203043342,-500.0,0.00013698,2]
[408760662,1774203043352,-624.34218457,0.00013698,2]
[408760663,1774203043361,-544.94328698,0.00013698,2]
[408760664,1774203043372,-500.0,0.00013698,2]
[408760665,1774203043381,-500.0,0.00013698,2]
[408760666,1774203043390,-500.0,0.00013698,2]
[408760667,1774203043400,-500.0,0.00013698,2]
[408760668,1774203043410,-500.0,0.00013698,2]
[408760669,1774203043419,-500.0,0.00013698,2]
[408760670,1774203043429,-607.96438655,0.00013698,2]
[408760671,1774203043438,-500.0,0.00013698,2]
[408760672,1774203043447,-500.0,0.00013698,2]
[408760673,1774203043456,-500.0,0.00013698,2]
[408760674,1774203043465,-500.0,0.00013698,2]
[408760675,1774203043474,-511.33595066,0.00013698,2]
[408760676,1774203043484,-500.0,0.00013698,2]
[408760677,1774203043493,-500.0,0.00013698,2]
[408760678,1774203043502,-521.23273696,0.00013698,2]
[408760679,1774203043511,-500.0,0.00013698,2]
[408760680,1774203043521,-500.0,0.00013698,2]
[408760681,1774203043530,-500.0,0.00013698,2]
[408760682,1774203043539,-500.0,0.00013698,2]
[408760683,1774203043549,-500.0,0.00013698,2]
[408760684,1774203043558,-500.0,0.00013698,2]
[408760685,1774203043567,-500.0,0.00013698,2]
[408760686,1774203043579,-500.0,0.00013698,2]
[408760687,1774203043588,-500.0,0.00013698,2]
[408760688,1774203043597,-500.0,0.00013698,2]
[408760689,1774203043605,-500.0,0.00013698,2]
[408760690,1774203043615,-500.0,0.00013698,2]
[408760691,1774203043624,-500.0,0.00013698,2]
[408760692,1774203043634,-500.0,0.00013698,2]
[408760693,1774203043643,-500.0,0.00013698,2]
[408760694,1774203043652,-500.0,0.00013698,2]
[408760695,1774203043662,-500.0,0.00013698,2]
[408760696,1774203043671,-500.0,0.00013698,2]
[408760697,1774203043682,-500.0,0.00013698,2]
[408760698,1774203043691,-500.0,0.00013698,2]
[408760699,1774203043701,-500.0,0.00013698,2]
[408760700,1774203043710,-411.8232167,0.00013698,2]
[408760702,1774203043720,-647.53,0.00013698,2]
[408760704,1774203043729,-647.53,0.00013698,2]
[408760706,1774203043739,-647.53,0.00013698,2]
[408760708,1774203043748,-647.53,0.00013698,2]
[408760709,1774203043759,-647.53,0.00013698,2]
[408760710,1774203043768,-647.53,0.00013698,2]
[408760711,1774203043777,-647.53,0.00013698,2]
[408760712,1774203043787,-647.53,0.00013698,2]
[408760713,1774203043796,-647.53,0.00013698,2]
[408760714,1774203043806,-647.53,0.00013698,2]
[408760715,1774203043816,-647.53,0.00013698,2]
[408760716,1774203043825,-647.53,0.00013698,2]
[408760717,1774203043837,-647.53,0.00013698,2]
[408760718,1774203043847,-647.53,0.00013698,2]
[408760719,1774203043857,-500.0,0.00013698,2]
[408760720,1774203043866,-500.0,0.00013698,2]
[408760721,1774203043875,-500.0,0.00013698,2]
[408760722,1774203043885,-500.0,0.00013698,2]
[408760723,1774203043895,-500.0,0.00013698,2]
[408760724,1774203043904,-500.0,0.00013698,2]
[408760725,1774203043914,-500.0,0.00013698,2]
[408760726,1774203043923,-500.0,0.00013698,2]
[408760727,1774203043933,-504.81538106,0.00013698,2]
[408760728,1774203043943,-500.0,0.00013698,2]
[408760729,1774203043952,-500.0,0.00013698,2]
[408760730,1774203043961,-500.0,0.00013698,2]
[408760731,1774203043971,-500.0,0.00013698,2]
[408760732,1774203043981,-500.0,0.00013698,2]
[408760733,1774203043991,-387.19872391,0.00013698,2]
[408760734,1774203044000,-500.0,0.00013698,2]
[408760735,1774203044009,-500.0,0.00013698,2]
[408760736,1774203044019,-500.0,0.00013698,2]
[408760737,1774203044028,-500.0,0.00013698,2]
[408760738,1774203044038,-500.0,0.00013698,2]
[408760739,1774203044047,-500.0,0.00013698,2]
[408760740,1774203044056,-500.0,0.00013698,2]
[408760741,1774203044065,-500.0,0.00013698,2]
[408760742,1774203044074,-500.0,0.00013698,2]
[408760743,1774203044084,-500.0,0.00013698,2]
[408760744,1774203044093,-500.0,0.00013698,2]
[408760745,1774203044103,-500.0,0.00013698,2]
[408760746,1774203044112,-500.0,0.00013698,2]
[408760747,1774203044122,-500.0,0.00013698,2]
[408760748,1774203044131,-500.0,0.00013698,2]
[408760749,1774203044141,-500.0,0.00013698,2]
[408760750,1774203044150,-500.0,0.00013698,2]
[408760751,1774203044159,-500.0,0.00013698,2]
[408760752,1774203044169,-500.0,0.00013698,2]
[408760753,1774203044178,-500.0,0.00013698,2]
[408760754,1774203044188,-628.57553912,0.00013698,2]
[408760755,1774203044198,-500.0,0.00013698,2]
[408760756,1774203044207,-500.0,0.00013698,2]
[408760757,1774203044216,-500.0,0.00013698,2]
[408760758,1774203044226,-507.46942592,0.00013698,2]
[408760759,1774203044235,-500.0,0.00013698,2]
[408760760,1774203044250,-500.0,0.00013698,2]
[408760761,1774203044260,-500.0,0.00013698,2]
[408760762,1774203044270,-515.1515975,0.00013698,2]
[408760763,1774203044279,-500.0,0.00013698,2]
[408760764,1774203044289,-218.62,0.00013698,2]
[408760765,1774203044298,-365.09,0.00013699,2]
[408760766,1774203044308,-200.0,0.00013699,2]
[408760767,1774203044319,-1676.61,0.00013699,2]
[408760768,1774203044331,-500.0,0.00013699,2]
[408760769,1774203044341,-500.4848322,0.00013699,2]
[408760770,1774203044351,-500.0,0.00013699,2]
[408760771,1774203044360,-500.0,0.00013699,2]
[408760772,1774203044370,-500.0,0.00013699,2]
[408760773,1774203044380,-500.0,0.00013699,2]
[408760774,1774203044389,-500.0,0.00013699,2]
[408760775,1774203044399,-260.01474672,0.00013699,2]
[408760776,1774203044411,-500.43058459,0.00013699,2]
[408760777,1774203044421,-500.74920901,0.00013699,2]
[408760778,1774203044431,-500.0,0.00013699,2]
[408760779,1774203044441,-500.0,0.00013699,2]
[408760780,1774203044450,-500.0,0.00013699,2]
[408760781,1774203044460,-500.0,0.00013699,2]
[408760782,1774203044469,-500.70382414,0.00013699,2]
[408760783,1774203044479,-500.0,0.00013699,2]
[408760784,1774203044488,-500.0,0.00013699,2]
[408760785,1774203044498,-500.0,0.00013699,2]
[408760786,1774203044507,-500.0,0.00013699,2]
[408760787,1774203044516,-500.0,0.00013699,2]
[408760788,1774203044526,-500.0,0.00013699,2]
[408760789,1774203044535,-500.0,0.00013699,2]
[408760790,1774203044544,-500.0,0.00013699,2]
[408760791,1774203044554,-500.0,0.00013699,2]
[408760792,1774203044563,-500.0,0.00013699,2]
[408760793,1774203044573,-500.0,0.00013699,2]
[408760794,1774203044583,-500.0,0.00013699,2]
[408760795,1774203044592,-500.0,0.00013699,2]
[408760796,1774203044605,-229.25187646,0.00013699,2]
[408760797,1774203044615,-500.0,0.00013699,2]
[408760798,1774203044624,-854.09,0.000137,2]
[408760799,1774203044634,-2085.01,0.000137,2]
[408760800,1774203044644,-1766.69,0.000137,2]
[408760801,1774203044653,-2524.9,0.000137,2]
[408760802,1774203044662,-487.27,0.000137,2]
[408760803,1774203044671,-150.0,0.00013702,2]
[408760804,1774203044681,-250.780991,0.00013713,7]
[408760805,1774203044690,-166.66,0.00013734,2]
[408760806,1774203044699,-6824.5007882,0.00013816,2]
[408760807,1774203044709,-2094.9202348,0.00013816,2]
[408760808,1774203044718,-2500.0,0.00013864,2]
[408760809,1774203044728,-200.0,0.0001387,2]
[408760810,1774203044738,-505.59,0.00013884,2]
[408760811,1774203044748,-500.0,0.00013989,2]
[408760812,1774203044757,-500.0,0.00013989,2]
[408760813,1774203044767,-500.0,0.00013989,2]
[408760814,1774203044777,-500.0,0.00013989,2]
[408760815,1774203044787,-500.0,0.00013989,2]
[408760816,1774203044797,-647.53,0.00013989,2]
[408760817,1774203044806,-501.0,0.00014,2]
[408760818,1774203044816,-500.0,0.00014009,2]
[408760819,1774203044825,-150.0,0.00014031,2]
[408760820,1774203044834,-439.0,0.00014055,2]
[408760821,1774203044843,-150.0,0.00014093,2]
[408760822,1774203044852,-60000.0,0.00014115,2]
[408760823,1774203044862,-166.66,0.00014134,2]
[408760824,1774203044871,-93212.5473363,0.00014152,2]
[408760825,1774203044880,-500.0,0.00014192,2]
[408760826,1774203044889,-1453.2119346,0.000142,2]
[408760827,1774203044898,-347.47666717,0.00014247,2]
[408760828,1774203044907,-1000.0,0.00014247,2]
[408760829,1774203044916,-500.0,0.00014247,2]
[408760830,1774203044926,-1000.0,0.00014247,2]
[408760831,1774203044935,-1000.0,0.00014247,2]
[408760832,1774203044945,-1000.0,0.00014247,2]
[408760833,1774203044954,-1000.0,0.00014247,2]
[408760834,1774203044964,-1002.54227332,0.00014247,2]
[408760835,1774203044973,-1000.0,0.00014247,2]
[408760836,1774203044982,-1000.0,0.00014247,2]
[408760837,1774203044992,-1261.11,0.000143,2]
[408760838,1774203045001,-168.12,0.00014311,2]
[408760839,1774203045010,-3292.0,0.00014357,2]
[408760840,1774203045020,-365.09,0.00014384,2]
[408760841,1774203045029,-736.0,0.00014388,2]
[408760842,1774203045038,-1485.61475363,0.00014412,2]
[408760843,1774203045048,-150.4545,0.000145,2]
[408760844,1774203045058,-49938.11760255,0.00014505,2]
[408760845,1774203045068,-150.0,0.0001451,2]
[408760846,1774203045078,-150.0,0.00014551,2]
[408760847,1774203045087,-159.81,0.00014581,2]
[408760848,1774203045098,-150.0,0.00014615,2]
[408760849,1774203045108,-151.0,0.0001465,2]
[408760850,1774203045118,-20798.530615,0.0001465,2]
[408760851,1774203045127,-1158.78645597,0.00014795,2]
[408760852,1774203045137,-1500.0,0.00014795,2]
[408760853,1774203045146,-501.53007131,0.00014795,2]
[408760854,1774203045156,-1500.0,0.00014795,2]
[408760855,1774203045165,-1500.0,0.00014795,2]
[408760856,1774203045175,-1500.0,0.00014795,2]
[408760857,1774203045184,-1500.0,0.00014795,2]
[408760858,1774203045194,-150.0,0.00014801,2]
[408760859,1774203045203,-501.0,0.00014805,2]
[408760860,1774203045212,-2000.0,0.00014948,2]
[408760861,1774203045221,-300.0,0.00015,2]
[408760862,1774203045230,-4791.0,0.00015,2]
[408760863,1774203045239,-500.0,0.00015,2]
[408760864,1774203045249,-155.0,0.00015067,2]
[408760865,1774203045258,-365.09,0.00015068,2]
[408760866,1774203045268,-264.79,0.00015068,2]
[408760867,1774203045277,-2524.9,0.000151,2]
[408760868,1774203045286,-487.27,0.000151,2]
[408760869,1774203045295,-474.623913,0.00015119,2]
[408760870,1774203045306,-474.623913,0.00015119,2]
[408760871,1774203045315,-474.623913,0.00015119,2]
[408760872,1774203045324,-474.623913,0.00015119,2]
[408760873,1774203045337,-1070.103139,0.00015119,2]
[408760874,1774203045347,-1070.103139,0.00015119,2]
[408760875,1774203045356,-1070.103139,0.00015119,2]
[408760876,1774203045365,-1070.103139,0.00015119,2]
[408760877,1774203045376,-854.09,0.000152,2]
[408760878,1774203045386,-10000.0,0.00015205,2]
[408760879,1774203045395,-150.0,0.00015236,2]
[408760880,1774203045406,-2085.01,0.000153,2]
[408760881,1774203045416,-1766.69,0.000153,2]
[408760882,1774203045426,-1482.79604468,0.00015342,2]
[408760883,1774203045435,-2000.0,0.00015342,2]
[408760884,1774203045445,-1073.03260881,0.00015342,2]
[408760885,1774203045454,-259.99072283,0.00015342,2]
[408760886,1774203045463,-2000.0,0.00015342,2]
[408760887,1774203045472,-708.0,0.00015357,2]
[408760888,1774203045482,-708.0,0.00015384,2]
[408760889,1774203045491,-193.22,0.00015416,2]
[408760890,1774203045501,-151.0,0.00015461,2]
[408760891,1774203045510,-708.0,0.00015464,2]
[408760892,1774203045519,-4000.0,0.00015507,2]
[408760893,1774203045529,-349.94,0.00015525,2]
[408760894,1774203045538,-15800.93211783,0.00015566,2]
[408760895,1774203045547,-708.0,0.00015572,2]
[408760896,1774203045557,-501.0,0.0001561,3]
[408760897,1774203045566,-159.81,0.00015623,2]
[408760898,1774203045577,-708.0,0.00015646,2]
[408760899,1774203045587,-231288.01038953,0.000157,2]
[408760900,1774203045596,-484.525869,0.000157,2]
[408760901,1774203045605,-484.525869,0.000157,2]
[408760902,1774203045615,-484.525869,0.000157,2]
[408760903,1774203045625,-484.525869,0.000157,2]
[408760904,1774203045634,-993.997431,0.000157,2]
[408760905,1774203045643,-993.997431,0.000157,2]
[408760906,1774203045653,-993.997431,0.000157,2]
[408760907,1774203045663,-993.997431,0.000157,2]
[408760908,1774203045672,-708.0,0.00015734,2]
[408760909,1774203045681,-151.0,0.00015739,2]
[408760910,1774203045692,-708.0,0.00015742,2]
[408760911,1774203045701,-365.09,0.00015753,2]
[408760912,1774203045711,-1252.0,0.00015757,2]
[408760913,1774203045720,-708.0,0.00015784,2]
[408760914,1774203045729,-4609.0,0.00015792,2]
[408760915,1774203045739,-150.6823,0.000158,2]
[408760916,1774203045748,-1261.11,0.000158,2]
[408760917,1774203045758,-1676.61,0.00015862,2]
[408760918,1774203045767,-2000.0,0.0001589,2]
[408760919,1774203045777,-1744.0069204,0.0001589,2]
[408760920,1774203045787,-1500.0,0.0001589,2]
[408760921,1774203045796,-4000.0,0.00015895,2]
[408760922,1774203045805,-505.59,0.00015899,2]
[408760923,1774203045814,-708.0,0.00015905,2]
[408760924,1774203045823,-500.0,0.0001592,2]
[408760925,1774203045833,-400.0,0.00015945,2]
[408760926,1774203045842,-400.0,0.00015945,2]
[408760927,1774203045851,-400.0,0.00015945,2]
[408760928,1774203045861,-400.0,0.00015945,2]
[408760929,1774203045870,-303.3462059,0.00015945,2]
[408760930,1774203045881,-49938.11760255,0.00015975,2]
[408760931,1774203045891,-553.51611347,0.00015999,2]
[408760932,1774203045900,-500.0,0.00015999,2]
[408760933,1774203045910,-500.0,0.00015999,2]
[408760934,1774203045919,-500.0,0.00015999,2]
[408760935,1774203045928,-500.0,0.00015999,2]
[408760936,1774203045938,-500.0,0.00015999,2]
[408760937,1774203045947,-500.0,0.00015999,2]
[408760938,1774203045957,-500.0,0.00015999,2]
[408760939,1774203046242,-500.0,0.00015999,2]